[Event "Early-Titled-Tuesday-Blitz-January-30-2024"]
[Site "Chess.com"]
[Date "2024.01.30"]
[Round "1"]
[White "Sethu0025"]
[Black "vesalhamedinia"]
[Result "0-1"]
[WhiteElo "2860"]
[BlackElo "2505"]
[TimeControl "180+1"]
[EndTime "8:08:40 PST"]
[Termination "vesalhamedinia won on time"]

1. d4 {[%clk 0:03:00.9]} 1... d5 {[%clk 0:02:59.7]} 2. c4 {[%clk 0:02:59.2]}
2... e6 {[%clk 0:02:59.8]} 3. Nf3 {[%clk 0:02:59.1]} 3... Nf6 {[%clk 0:02:59]}
4. g3 {[%clk 0:02:59.2]} 4... Be7 {[%clk 0:02:58.2]} 5. Bg2 {[%clk 0:02:58.7]}
5... O-O {[%clk 0:02:58.7]} 6. O-O {[%clk 0:02:59.2]} 6... c6 {[%clk 0:02:57.6]}
7. Qc2 {[%clk 0:02:50.6]} 7... Nbd7 {[%clk 0:02:52]} 8. Rd1 {[%clk 0:02:47.2]}
8... a5 {[%clk 0:02:45.6]} 9. b3 {[%clk 0:02:43.7]} 9... b5 {[%clk 0:02:44.5]}
10. Nbd2 {[%clk 0:02:18.3]} 10... Ba6 {[%clk 0:02:38.1]} 11. c5 {[%clk
0:02:15.1]} 11... b4 {[%clk 0:02:25.6]} 12. Nf1 {[%clk 0:02:14.3]} 12... Ne4
{[%clk 0:02:17.3]} 13. Bb2 {[%clk 0:02:13.9]} 13... e5 {[%clk 0:01:43.5]} 14.
Nxe5 {[%clk 0:02:08]} 14... Nxe5 {[%clk 0:01:42.1]} 15. Bxe4 {[%clk 0:02:06]}
15... Ng6 {[%clk 0:01:35]} 16. Bg2 {[%clk 0:02:04.3]} 16... Re8 {[%clk
0:01:30.3]} 17. e4 {[%clk 0:02:03.2]} 17... Bf6 {[%clk 0:01:10.6]} 18. Ne3
{[%clk 0:01:57]} 18... dxe4 {[%clk 0:00:59.3]} 19. Bxe4 {[%clk 0:01:57.9]} 19...
Rc8 {[%clk 0:00:59.3]} 20. Nf5 {[%clk 0:01:55.3]} 20... Rc7 {[%clk 0:00:39.6]}
21. Nd6 {[%clk 0:01:53.4]} 21... Ree7 {[%clk 0:00:36]} 22. Re1 {[%clk
0:01:21.5]} 22... Nf8 {[%clk 0:00:35.8]} 23. Rad1 {[%clk 0:01:11.9]} 23... Red7
{[%clk 0:00:16.5]} 24. Bxh7+ {[%clk 0:01:07.2]} 24... Nxh7 {[%clk 0:00:13.1]}
25. Re8+ {[%clk 0:01:07]} 25... Qxe8 {[%clk 0:00:13.5]} 26. Nxe8 {[%clk
0:01:07.9]} 26... Rc8 {[%clk 0:00:14]} 27. Nd6 {[%clk 0:01:05.8]} 27... Rcd8
{[%clk 0:00:14]} 28. Qe4 {[%clk 0:00:59.6]} 28... Ng5 {[%clk 0:00:12.8]} 29.
Qxc6 {[%clk 0:00:57.1]} 29... Be2 {[%clk 0:00:13.4]} 30. Rc1 {[%clk 0:00:42.7]}
30... Bf3 {[%clk 0:00:13.6]} 31. Qb5 {[%clk 0:00:35.9]} 31... Nh3+ {[%clk
0:00:13.4]} 32. Kf1 {[%clk 0:00:34.1]} 32... Re7 {[%clk 0:00:13.7]} 33. Re1
{[%clk 0:00:31.9]} 33... Rdd7 {[%clk 0:00:06.3]} 34. Re3 {[%clk 0:00:16.8]}
34... Rxe3 {[%clk 0:00:04.5]} 35. fxe3 {[%clk 0:00:17.7]} 35... Re7 {[%clk
0:00:04.2]} 36. Nf5 {[%clk 0:00:17.1]} 36... Re6 {[%clk 0:00:04.2]} 37. Qb8+
{[%clk 0:00:14.9]} 37... Kh7 {[%clk 0:00:04.2]} 38. d5 {[%clk 0:00:10.4]} 38...
Bxd5 {[%clk 0:00:02.9]} 39. Bd4 {[%clk 0:00:09]} 39... Bxd4 {[%clk 0:00:02.1]}
40. Nxd4 {[%clk 0:00:08.7]} 40... Rf6+ {[%clk 0:00:03]} 41. Ke2 {[%clk
0:00:08.7]} 41... Ng5 {[%clk 0:00:03.9]} 42. h4 {[%clk 0:00:06]} 42... Ne4
{[%clk 0:00:04.8]} 43. Nf3 {[%clk 0:00:04.8]} 43... Nc3+ {[%clk 0:00:05.5]} 44.
Kd3 {[%clk 0:00:04.1]} 44... Bxf3 {[%clk 0:00:06.4]} 45. Kc4 {[%clk 0:00:03.2]}
45... Be4 {[%clk 0:00:07.3]} 46. Kd4 {[%clk 0:00:02.5]} 46... Bd5 {[%clk
0:00:07.6]} 47. Qe5 {[%clk 0:00:02.4]} 47... Bc6 {[%clk 0:00:08.1]} 48. Qh5+
{[%clk 0:00:02.4]} 48... Kg8 {[%clk 0:00:08.7]} 49. Qe5 {[%clk 0:00:03.3]} 49...
Re6 {[%clk 0:00:08.3]} 50. Qb8+ {[%clk 0:00:02.9]} 50... Kh7 {[%clk 0:00:09]}
51. h5 {[%clk 0:00:03.2]} 51... Re4+ {[%clk 0:00:09.3]} 52. Kd3 {[%clk
0:00:03.5]} 52... Rg4 {[%clk 0:00:09.7]} 53. Qd6 {[%clk 0:00:02.7]} 53... Bb5+
{[%clk 0:00:10.1]} 54. Kd2 {[%clk 0:00:02.3]} 54... Ne4+ {[%clk 0:00:10.4]} 55.
Ke1 {[%clk 0:00:01.1]} 55... Nxd6 {[%clk 0:00:11.3]} 56. cxd6 {[%clk 0:00:01.6]}
56... Rxg3 {[%clk 0:00:12.1]} 0-1

[Event "Early-Titled-Tuesday-Blitz-January-30-2024"]
[Site "Chess.com"]
[Date "2024.01.30"]
[Round "1"]
[White "claudyna16"]
[Black "Mikhail_Golubev"]
[Result "0-1"]
[WhiteElo "2353"]
[BlackElo "2680"]
[TimeControl "180+1"]
[EndTime "8:08:40 PST"]
[Termination "Mikhail_Golubev won by resignation"]

1. c4 {[%clk 0:03:00.9]} 1... g6 {[%clk 0:02:59.3]} 2. g3 {[%clk 0:02:59.4]}
2... Bg7 {[%clk 0:02:56.1]} 3. Bg2 {[%clk 0:02:59.7]} 3... e5 {[%clk 0:02:55]}
4. Nc3 {[%clk 0:02:59.9]} 4... Nc6 {[%clk 0:02:49.2]} 5. e3 {[%clk 0:03:00]}
5... d6 {[%clk 0:02:47.4]} 6. Nge2 {[%clk 0:02:59.3]} 6... Nf6 {[%clk
0:02:46.8]} 7. O-O {[%clk 0:02:59]} 7... O-O {[%clk 0:02:46.3]} 8. d3 {[%clk
0:02:56.6]} 8... Be6 {[%clk 0:02:42.9]} 9. Nd5 {[%clk 0:02:56.1]} 9... Ne8
{[%clk 0:02:41]} 10. h3 {[%clk 0:02:54.5]} 10... Qd7 {[%clk 0:02:38.7]} 11. Kh2
{[%clk 0:02:54]} 11... Nd8 {[%clk 0:02:36.6]} 12. Rb1 {[%clk 0:02:43.1]} 12...
c6 {[%clk 0:02:34.3]} 13. Ndc3 {[%clk 0:02:43.3]} 13... d5 {[%clk 0:02:15.1]}
14. cxd5 {[%clk 0:02:43]} 14... cxd5 {[%clk 0:02:16]} 15. d4 {[%clk 0:02:39.3]}
15... e4 {[%clk 0:02:11.9]} 16. b4 {[%clk 0:02:39.3]} 16... Nd6 {[%clk
0:02:07.9]} 17. Nf4 {[%clk 0:02:10.9]} 17... Nc4 {[%clk 0:02:06.6]} 18. a4
{[%clk 0:02:06.9]} 18... Rc8 {[%clk 0:02:03.2]} 19. Bd2 {[%clk 0:02:00.9]} 19...
Nc6 {[%clk 0:01:51.1]} 20. b5 {[%clk 0:01:59.2]} 20... N6a5 {[%clk 0:01:45.3]}
21. Qe2 {[%clk 0:01:55.6]} 21... Nxd2 {[%clk 0:01:40.5]} 22. Qxd2 {[%clk
0:01:55.4]} 22... Nc4 {[%clk 0:01:41.1]} 23. Qe2 {[%clk 0:01:50.8]} 23... Bh6
{[%clk 0:01:32]} 24. Rfc1 {[%clk 0:01:48.8]} 24... Bxf4 {[%clk 0:01:30.9]} 25.
exf4 {[%clk 0:01:43.5]} 25... Qd6 {[%clk 0:01:23.9]} 26. Nd1 {[%clk 0:01:40.7]}
26... Qb6 {[%clk 0:01:20.4]} 27. Ne3 {[%clk 0:01:21.7]} 27... Qxd4 {[%clk
0:01:19.3]} 28. Rd1 {[%clk 0:01:18.6]} 28... Qc5 {[%clk 0:00:53.7]} 29. Rbc1
{[%clk 0:01:18.4]} 29... f5 {[%clk 0:00:50.7]} 30. g4 {[%clk 0:01:12.7]} 30...
Qd6 {[%clk 0:00:44.1]} 31. gxf5 {[%clk 0:01:08.3]} 31... Qxf4+ {[%clk
0:00:43.4]} 32. Kg1 {[%clk 0:01:08.5]} 32... Nxe3 {[%clk 0:00:32.5]} 33. fxe3
{[%clk 0:00:54.5]} 33... Qxf5 {[%clk 0:00:32]} 34. Rxc8 {[%clk 0:00:54.3]} 34...
Rxc8 {[%clk 0:00:30.2]} 35. Rf1 {[%clk 0:00:54.7]} 35... Qe5 {[%clk 0:00:30.2]}
36. Qf2 {[%clk 0:00:52.1]} 36... Bf5 {[%clk 0:00:27.1]} 37. Rd1 {[%clk
0:00:47.6]} 37... Rf8 {[%clk 0:00:23.7]} 38. Qd2 {[%clk 0:00:43.3]} 38... Be6
{[%clk 0:00:22.3]} 39. Rc1 {[%clk 0:00:40.4]} 39... Qg3 {[%clk 0:00:20.5]} 40.
Qe1 {[%clk 0:00:39.2]} 40... Qxe1+ {[%clk 0:00:19.3]} 41. Rxe1 {[%clk
0:00:40.1]} 41... Rc8 {[%clk 0:00:16.9]} 42. Rf1 {[%clk 0:00:37.1]} 42... Kg7
{[%clk 0:00:16]} 43. Ra1 {[%clk 0:00:30.7]} 43... Kf6 {[%clk 0:00:15]} 44. Bf1
{[%clk 0:00:30.7]} 44... Ke5 {[%clk 0:00:14.2]} 45. Kf2 {[%clk 0:00:30.9]} 45...
Rc2+ {[%clk 0:00:13.1]} 46. Kg3 {[%clk 0:00:28.6]} 46... Rc3 {[%clk 0:00:12.1]}
47. Kf2 {[%clk 0:00:28.5]} 47... g5 {[%clk 0:00:11.2]} 48. Rd1 {[%clk
0:00:27.7]} 48... h5 {[%clk 0:00:10.9]} 49. Rd2 {[%clk 0:00:27.1]} 49... h4
{[%clk 0:00:10]} 50. Be2 {[%clk 0:00:26.4]} 50... Bxh3 {[%clk 0:00:09.1]} 51.
Rd1 {[%clk 0:00:26.5]} 51... Be6 {[%clk 0:00:08.7]} 52. Rg1 {[%clk 0:00:26.5]}
52... Kf6 {[%clk 0:00:06.8]} 53. Ke1 {[%clk 0:00:26.5]} 53... Rc1+ {[%clk
0:00:06.3]} 54. Kf2 {[%clk 0:00:26.3]} 54... Rxg1 {[%clk 0:00:05.4]} 55. Kxg1
{[%clk 0:00:27.2]} 55... Ke5 {[%clk 0:00:05.7]} 56. Kf2 {[%clk 0:00:27.6]} 56...
d4 {[%clk 0:00:06.1]} 57. exd4+ {[%clk 0:00:28.3]} 57... Kxd4 {[%clk 0:00:06.5]}
58. Bd1 {[%clk 0:00:28.2]} 58... Bc4 {[%clk 0:00:06.2]} 59. Bh5 {[%clk
0:00:25.9]} 59... e3+ {[%clk 0:00:06.2]} 60. Ke1 {[%clk 0:00:26.4]} 60... h3
{[%clk 0:00:06]} 61. Bf3 {[%clk 0:00:26.7]} 61... e2 {[%clk 0:00:02.9]} 62. Bxb7
{[%clk 0:00:24]} 62... h2 {[%clk 0:00:01.8]} 63. a5 {[%clk 0:00:20.1]} 63... Ke3
{[%clk 0:00:02.1]} 64. a6 {[%clk 0:00:19.7]} 64... Bxb5 {[%clk 0:00:01.6]} 65.
Bh1 {[%clk 0:00:17.9]} 65... Bc4 {[%clk 0:00:02.2]} 66. Bd5 {[%clk 0:00:16.3]}
66... Bb5 {[%clk 0:00:02.9]} 67. Bc6 {[%clk 0:00:16.5]} 67... Bxa6 {[%clk
0:00:03.2]} 68. Bb7 {[%clk 0:00:17]} 68... Bd3 {[%clk 0:00:03.9]} 69. Bc6 {[%clk
0:00:16.2]} 69... a5 {[%clk 0:00:04.8]} 70. Bh1 {[%clk 0:00:15]} 70... a4 {[%clk
0:00:04.3]} 0-1

[Event "Early-Titled-Tuesday-Blitz-January-30-2024"]
[Site "Chess.com"]
[Date "2024.01.30"]
[Round "1"]
[White "FLYD"]
[Black "JeFumeDesClopes"]
[Result "0-1"]
[WhiteElo "2037"]
[BlackElo "2563"]
[TimeControl "180+1"]
[EndTime "8:08:42 PST"]
[Termination "JeFumeDesClopes won by checkmate"]

1. e4 {[%clk 0:03:00.9]} 1... g6 {[%clk 0:02:59.3]} 2. d4 {[%clk 0:03:00.7]}
2... Bg7 {[%clk 0:02:59.5]} 3. Nc3 {[%clk 0:02:59.3]} 3... d6 {[%clk 0:02:59.8]}
4. f4 {[%clk 0:02:56.8]} 4... a6 {[%clk 0:03:00]} 5. Nf3 {[%clk 0:02:53.9]} 5...
b5 {[%clk 0:02:59]} 6. a3 {[%clk 0:02:50.8]} 6... Nd7 {[%clk 0:02:56]} 7. Be3
{[%clk 0:02:45.5]} 7... Bb7 {[%clk 0:02:54.2]} 8. d5 {[%clk 0:02:41.4]} 8...
Ngf6 {[%clk 0:02:46.7]} 9. Bd3 {[%clk 0:02:38.3]} 9... c6 {[%clk 0:02:41]} 10.
dxc6 {[%clk 0:02:32.7]} 10... Bxc6 {[%clk 0:02:41.1]} 11. O-O {[%clk 0:02:31.2]}
11... O-O {[%clk 0:02:40.9]} 12. h3 {[%clk 0:02:30.2]} 12... Rc8 {[%clk
0:02:29.5]} 13. Qe2 {[%clk 0:02:25.5]} 13... d5 {[%clk 0:02:16.6]} 14. e5 {[%clk
0:02:22]} 14... Ne4 {[%clk 0:02:10.4]} 15. Bxe4 {[%clk 0:02:18.1]} 15... dxe4
{[%clk 0:02:11.1]} 16. Nd4 {[%clk 0:02:19]} 16... Bb7 {[%clk 0:02:06.1]} 17.
Rad1 {[%clk 0:02:17]} 17... e6 {[%clk 0:01:59.1]} 18. Bf2 {[%clk 0:02:00.5]}
18... Rxc3 {[%clk 0:01:36.3]} 19. bxc3 {[%clk 0:01:59.4]} 19... Qc7 {[%clk
0:01:37]} 20. c4 {[%clk 0:01:48.5]} 20... bxc4 {[%clk 0:01:31.2]} 21. Be3 {[%clk
0:01:24.6]} 21... Bd5 {[%clk 0:01:29.9]} 22. Rb1 {[%clk 0:01:16.6]} 22... Rc8
{[%clk 0:01:21]} 23. Rfd1 {[%clk 0:01:10.8]} 23... Bf8 {[%clk 0:01:19.7]} 24. h4
{[%clk 0:00:49.4]} 24... Nc5 {[%clk 0:01:16.6]} 25. h5 {[%clk 0:00:47.7]} 25...
Na4 {[%clk 0:01:15.6]} 26. Bd2 {[%clk 0:00:32.8]} 26... Qc5 {[%clk 0:00:57.5]}
27. c3 {[%clk 0:00:32.2]} 27... Qxa3 {[%clk 0:00:56.3]} 28. Ra1 {[%clk
0:00:28.9]} 28... Nxc3 {[%clk 0:00:49.1]} 29. Qe1 {[%clk 0:00:18.7]} 29... Na2
{[%clk 0:00:46.3]} 30. hxg6 {[%clk 0:00:15]} 30... hxg6 {[%clk 0:00:46]} 31. Nc2
{[%clk 0:00:12.2]} 31... Qb2 {[%clk 0:00:42]} 32. Ne3 {[%clk 0:00:11.3]} 32...
Bc5 {[%clk 0:00:36.4]} 33. Kh1 {[%clk 0:00:10.5]} 33... c3 {[%clk 0:00:35.3]}
34. Rxa2 {[%clk 0:00:09.5]} 34... Qxa2 {[%clk 0:00:27.8]} 35. Bxc3 {[%clk
0:00:09.9]} 35... Bxe3 {[%clk 0:00:25.6]} 36. Qxe3 {[%clk 0:00:10.8]} 36... Qb3
{[%clk 0:00:24.6]} 37. Rc1 {[%clk 0:00:10.3]} 37... a5 {[%clk 0:00:22.2]} 38. f5
{[%clk 0:00:10.2]} 38... exf5 {[%clk 0:00:21]} 39. e6 {[%clk 0:00:11.1]} 39...
Bxe6 {[%clk 0:00:17.1]} 40. Qd4 {[%clk 0:00:11.5]} 40... Rxc3 {[%clk 0:00:16.5]}
41. Rxc3 {[%clk 0:00:12.4]} 41... Qb1+ {[%clk 0:00:13.6]} 42. Kh2 {[%clk
0:00:13]} 42... Qb8+ {[%clk 0:00:12.6]} 43. Kg1 {[%clk 0:00:10]} 43... Qf4
{[%clk 0:00:12.7]} 44. Rh3 {[%clk 0:00:09.1]} 44... Qc1+ {[%clk 0:00:09.8]} 45.
Kh2 {[%clk 0:00:07.7]} 45... Qc7+ {[%clk 0:00:08.1]} 46. g3 {[%clk 0:00:06.3]}
46... Kf8 {[%clk 0:00:08.5]} 47. Rh8+ {[%clk 0:00:06]} 47... Ke7 {[%clk
0:00:08.5]} 48. Rh7 {[%clk 0:00:05.7]} 48... Qc6 {[%clk 0:00:07]} 49. Qe3 {[%clk
0:00:04.5]} 49... a4 {[%clk 0:00:07]} 50. Rh4 {[%clk 0:00:04.3]} 50... Qc4
{[%clk 0:00:06.6]} 51. Qg5+ {[%clk 0:00:04.8]} 51... Kd7 {[%clk 0:00:06.8]} 52.
Qe3 {[%clk 0:00:04]} 52... Qb3 {[%clk 0:00:06.6]} 53. Qd2+ {[%clk 0:00:04.4]}
53... Qd3 {[%clk 0:00:06.7]} 54. Qc1 {[%clk 0:00:04.6]} 54... a3 {[%clk
0:00:06.6]} 55. Qa1 {[%clk 0:00:04.4]} 55... Qc2+ {[%clk 0:00:06.5]} 56. Kh3
{[%clk 0:00:04.2]} 56... Qb2 {[%clk 0:00:07.4]} 57. Qe1 {[%clk 0:00:02.9]} 57...
f4+ {[%clk 0:00:07.8]} 58. g4 {[%clk 0:00:03.4]} 58... Qb3+ {[%clk 0:00:08.2]}
59. Kh2 {[%clk 0:00:03.4]} 59... a2 {[%clk 0:00:08.6]} 60. Rh3 {[%clk 0:00:04]}
60... Qb2+ {[%clk 0:00:08.8]} 61. Kg1 {[%clk 0:00:02.4]} 61... a1=Q {[%clk
0:00:09.7]} 62. Qxa1 {[%clk 0:00:02.5]} 62... Qxa1+ {[%clk 0:00:10.6]} 63. Kh2
{[%clk 0:00:02.5]} 63... f3 {[%clk 0:00:11]} 64. Rg3 {[%clk 0:00:03.1]} 64...
Qe1 {[%clk 0:00:10.4]} 65. Kh3 {[%clk 0:00:04]} 65... f2 {[%clk 0:00:10.3]} 66.
Rf3 {[%clk 0:00:04.1]} 66... f1=Q+ {[%clk 0:00:08.9]} 67. Rxf1 {[%clk
0:00:04.4]} 67... Qxf1+ {[%clk 0:00:09.8]} 68. Kg3 {[%clk 0:00:04.9]} 68... Qf3+
{[%clk 0:00:09.7]} 69. Kh2 {[%clk 0:00:05.5]} 69... Qxg4 {[%clk 0:00:08.9]} 70.
Kh1 {[%clk 0:00:06.4]} 70... e3 {[%clk 0:00:09]} 71. Kh2 {[%clk 0:00:07.3]}
71... e2 {[%clk 0:00:09]} 72. Kh1 {[%clk 0:00:08.2]} 72... Bd5+ {[%clk
0:00:09.3]} 73. Kh2 {[%clk 0:00:09.1]} 73... Qg2# {[%clk 0:00:09.8]} 0-1

[Event "Early-Titled-Tuesday-Blitz-January-30-2024"]
[Site "Chess.com"]
[Date "2024.01.30"]
[Round "1"]
[White "Cambek64"]
[Black "K_A_S_T_O_R"]
[Result "0-1"]
[WhiteElo "2503"]
[BlackElo "2912"]
[TimeControl "180+1"]
[EndTime "8:08:45 PST"]
[Termination "K_A_S_T_O_R won on time"]

1. b3 {[%clk 0:02:37.3]} 1... c5 {[%clk 0:02:57.8]} 2. Bb2 {[%clk 0:02:33.8]}
2... d5 {[%clk 0:02:57]} 3. e3 {[%clk 0:02:34.1]} 3... Nf6 {[%clk 0:02:53.3]} 4.
Nf3 {[%clk 0:02:33.9]} 4... a6 {[%clk 0:02:48]} 5. Be2 {[%clk 0:02:32.7]} 5...
Bg4 {[%clk 0:02:46.1]} 6. O-O {[%clk 0:02:32.5]} 6... Nc6 {[%clk 0:02:45.5]} 7.
d3 {[%clk 0:02:31.6]} 7... e6 {[%clk 0:02:44.4]} 8. Nbd2 {[%clk 0:02:31.9]} 8...
Bd6 {[%clk 0:02:41.5]} 9. c4 {[%clk 0:02:30.9]} 9... O-O {[%clk 0:02:39]} 10. a3
{[%clk 0:02:28.2]} 10... Qe7 {[%clk 0:02:34.2]} 11. h3 {[%clk 0:02:28.1]} 11...
Bh5 {[%clk 0:02:33.7]} 12. Qc2 {[%clk 0:02:22.4]} 12... Rfd8 {[%clk 0:02:32.2]}
13. Rfe1 {[%clk 0:02:21.7]} 13... Rac8 {[%clk 0:02:30.2]} 14. Rad1 {[%clk
0:02:21.8]} 14... h6 {[%clk 0:02:21.1]} 15. Qb1 {[%clk 0:02:14.7]} 15... Bg6
{[%clk 0:02:20.7]} 16. Qa1 {[%clk 0:02:14.9]} 16... Bb8 {[%clk 0:02:12]} 17.
cxd5 {[%clk 0:01:55.7]} 17... Rxd5 {[%clk 0:02:02.7]} 18. e4 {[%clk 0:01:53.9]}
18... Rdd8 {[%clk 0:02:00.8]} 19. Nc4 {[%clk 0:01:51.5]} 19... b5 {[%clk
0:01:55]} 20. Nce5 {[%clk 0:01:50.2]} 20... Nxe5 {[%clk 0:01:49.6]} 21. Bxe5
{[%clk 0:01:40.4]} 21... Bxe5 {[%clk 0:01:45.8]} 22. Nxe5 {[%clk 0:01:38.4]}
22... Bh7 {[%clk 0:01:45.1]} 23. Qb2 {[%clk 0:01:32.9]} 23... Ne8 {[%clk
0:01:41.8]} 24. f4 {[%clk 0:01:29.9]} 24... Nd6 {[%clk 0:01:39.9]} 25. Nf3
{[%clk 0:01:26.5]} 25... Qc7 {[%clk 0:01:37.4]} 26. Bf1 {[%clk 0:01:19.9]} 26...
Ne8 {[%clk 0:01:34.2]} 27. g3 {[%clk 0:01:15.7]} 27... Nf6 {[%clk 0:01:33.9]}
28. Kh2 {[%clk 0:01:14.3]} 28... Qb6 {[%clk 0:01:31]} 29. Rc1 {[%clk 0:01:04.2]}
29... Rc7 {[%clk 0:01:23.4]} 30. Rc2 {[%clk 0:01:01.6]} 30... Rdc8 {[%clk
0:01:23.7]} 31. g4 {[%clk 0:00:49.8]} 31... Nd7 {[%clk 0:01:17.9]} 32. Kg2
{[%clk 0:00:40.3]} 32... Qd6 {[%clk 0:01:16.5]} 33. Ne5 {[%clk 0:00:37.8]} 33...
f6 {[%clk 0:01:10.7]} 34. Nxd7 {[%clk 0:00:37]} 34... Rxd7 {[%clk 0:01:11.3]}
35. f5 {[%clk 0:00:33.1]} 35... e5 {[%clk 0:01:08.8]} 36. Rec1 {[%clk
0:00:31.9]} 36... Rdc7 {[%clk 0:01:05.9]} 37. Be2 {[%clk 0:00:30]} 37... Kf8
{[%clk 0:01:05.1]} 38. b4 {[%clk 0:00:28.5]} 38... cxb4 {[%clk 0:00:46.5]} 39.
Rxc7 {[%clk 0:00:27.4]} 39... Rxc7 {[%clk 0:00:46.3]} 40. Rxc7 {[%clk
0:00:27.4]} 40... Qxc7 {[%clk 0:00:46.7]} 41. Qxb4+ {[%clk 0:00:26.8]} 41... Ke8
{[%clk 0:00:46.8]} 42. Bd1 {[%clk 0:00:22.4]} 42... Bg8 {[%clk 0:00:45.9]} 43.
Bb3 {[%clk 0:00:22.3]} 43... Bxb3 {[%clk 0:00:42.7]} 44. Qxb3 {[%clk 0:00:22.1]}
44... Kf8 {[%clk 0:00:41.7]} 45. Kf3 {[%clk 0:00:20.9]} 45... Qd6 {[%clk
0:00:38.4]} 46. Ke2 {[%clk 0:00:18.1]} 46... Qc5 {[%clk 0:00:35.1]} 47. h4
{[%clk 0:00:13]} 47... a5 {[%clk 0:00:33.5]} 48. Kf3 {[%clk 0:00:11]} 48... b4
{[%clk 0:00:28.6]} 49. axb4 {[%clk 0:00:11.4]} 49... axb4 {[%clk 0:00:29]} 50.
Ke2 {[%clk 0:00:10.4]} 50... Qd4 {[%clk 0:00:24.8]} 51. Qa2 {[%clk 0:00:09.8]}
51... Qb6 {[%clk 0:00:21.7]} 52. Qb3 {[%clk 0:00:07.3]} 52... Ke7 {[%clk
0:00:19.6]} 53. Kd1 {[%clk 0:00:07]} 53... Kd6 {[%clk 0:00:16]} 54. Qe6+ {[%clk
0:00:05.5]} 54... Kc7 {[%clk 0:00:14.8]} 55. Qe7+ {[%clk 0:00:05]} 55... Kb8
{[%clk 0:00:15.1]} 56. Qe8+ {[%clk 0:00:04.9]} 56... Kb7 {[%clk 0:00:14.9]} 57.
Qf7+ {[%clk 0:00:05.1]} 57... Qc7 {[%clk 0:00:14.1]} 58. Qd5+ {[%clk 0:00:02.5]}
58... Kb6 {[%clk 0:00:13.8]} 59. Qe6+ {[%clk 0:00:00.6]} 59... Kb5 {[%clk
0:00:11.2]} 0-1

[Event "Early-Titled-Tuesday-Blitz-January-30-2024"]
[Site "Chess.com"]
[Date "2024.01.30"]
[Round "1"]
[White "Rdeux42"]
[Black "Pliukha_Mikhail"]
[Result "1-0"]
[WhiteElo "2443"]
[BlackElo "2758"]
[TimeControl "180+1"]
[EndTime "8:08:49 PST"]
[Termination "Rdeux42 won by checkmate"]

1. e4 {[%clk 0:03:00.9]} 1... d5 {[%clk 0:02:59.4]} 2. exd5 {[%clk 0:03:00.6]}
2... Qxd5 {[%clk 0:02:57.1]} 3. Nc3 {[%clk 0:03:01.1]} 3... Qe5+ {[%clk
0:02:57.4]} 4. Be2 {[%clk 0:02:55.9]} 4... Bg4 {[%clk 0:02:57.6]} 5. d4 {[%clk
0:02:55.3]} 5... Bxe2 {[%clk 0:02:58.5]} 6. Qxe2 {[%clk 0:02:43.2]} 6... Qa5
{[%clk 0:02:59.4]} 7. Nf3 {[%clk 0:02:40]} 7... Nf6 {[%clk 0:02:59.4]} 8. Qb5+
{[%clk 0:02:37.5]} 8... Qxb5 {[%clk 0:02:59.3]} 9. Nxb5 {[%clk 0:02:38.1]} 9...
Na6 {[%clk 0:03:00.2]} 10. Bf4 {[%clk 0:02:37.1]} 10... c6 {[%clk 0:03:00.2]}
11. Nc7+ {[%clk 0:02:32.7]} 11... Nxc7 {[%clk 0:03:00]} 12. Bxc7 {[%clk
0:02:33.6]} 12... e6 {[%clk 0:02:59.2]} 13. O-O-O {[%clk 0:02:32.8]} 13... Be7
{[%clk 0:02:56.8]} 14. h3 {[%clk 0:02:29.6]} 14... O-O {[%clk 0:02:56.4]} 15.
Rhe1 {[%clk 0:02:28.7]} 15... Rac8 {[%clk 0:02:53.7]} 16. Be5 {[%clk 0:02:27.6]}
16... Nd5 {[%clk 0:02:52.9]} 17. Kb1 {[%clk 0:02:24.7]} 17... c5 {[%clk
0:02:53]} 18. c4 {[%clk 0:02:07.8]} 18... Nb6 {[%clk 0:02:50.8]} 19. b3 {[%clk
0:02:07.6]} 19... cxd4 {[%clk 0:02:45.3]} 20. Nxd4 {[%clk 0:02:01]} 20... Bc5
{[%clk 0:02:41.9]} 21. Bg3 {[%clk 0:01:59.1]} 21... a6 {[%clk 0:02:25.8]} 22.
Ne2 {[%clk 0:01:45.2]} 22... Rfd8 {[%clk 0:02:10.9]} 23. Kc2 {[%clk 0:01:42.9]}
23... Kf8 {[%clk 0:02:08.9]} 24. Rxd8+ {[%clk 0:01:36.1]} 24... Rxd8 {[%clk
0:02:08.7]} 25. Rd1 {[%clk 0:01:37]} 25... Rxd1 {[%clk 0:02:06.7]} 26. Kxd1
{[%clk 0:01:37.9]} 26... Ke7 {[%clk 0:02:04.4]} 27. Kc2 {[%clk 0:01:38.4]} 27...
f5 {[%clk 0:02:00]} 28. Be5 {[%clk 0:01:37.1]} 28... g6 {[%clk 0:01:58.6]} 29.
f3 {[%clk 0:01:37.4]} 29... Nd7 {[%clk 0:01:58.8]} 30. Bd4 {[%clk 0:01:37]}
30... Bxd4 {[%clk 0:01:57.5]} 31. Nxd4 {[%clk 0:01:37.9]} 31... e5 {[%clk
0:01:58.1]} 32. Ne2 {[%clk 0:01:37]} 32... Kd6 {[%clk 0:01:57]} 33. b4 {[%clk
0:01:24.7]} 33... e4 {[%clk 0:01:52.1]} 34. fxe4 {[%clk 0:01:11.2]} 34... fxe4
{[%clk 0:01:53]} 35. Kd2 {[%clk 0:01:11.5]} 35... Ne5 {[%clk 0:01:42.4]} 36. Ke3
{[%clk 0:01:03]} 36... Nxc4+ {[%clk 0:01:41]} 37. Kxe4 {[%clk 0:01:03.5]} 37...
Na3 {[%clk 0:01:23]} 38. Nd4 {[%clk 0:00:56.2]} 38... b5 {[%clk 0:01:19.4]} 39.
g4 {[%clk 0:00:46.1]} 39... Nc4 {[%clk 0:01:15.7]} 40. g5 {[%clk 0:00:42.8]}
40... Nb6 {[%clk 0:01:05.7]} 41. Nb3 {[%clk 0:00:33.6]} 41... Nd5 {[%clk
0:01:03.5]} 42. a3 {[%clk 0:00:34.3]} 42... Nc3+ {[%clk 0:01:04.1]} 43. Kd4
{[%clk 0:00:25.2]} 43... Nb1 {[%clk 0:01:05]} 44. Nc5 {[%clk 0:00:24.6]} 44...
Nxa3 {[%clk 0:01:04.7]} 45. Nxa6 {[%clk 0:00:25.3]} 45... Nc2+ {[%clk
0:00:53.2]} 46. Ke4 {[%clk 0:00:24.6]} 46... Kc6 {[%clk 0:00:50.6]} 47. Kd3
{[%clk 0:00:21.2]} 47... Ne1+ {[%clk 0:00:50.8]} 48. Ke2 {[%clk 0:00:18.9]}
48... Ng2 {[%clk 0:00:47.8]} 49. Kf3 {[%clk 0:00:16.2]} 49... Nh4+ {[%clk
0:00:48]} 50. Ke4 {[%clk 0:00:16.1]} 50... Nf5 {[%clk 0:00:47.6]} 51. Ke5 {[%clk
0:00:15.6]} 51... Nd6 {[%clk 0:00:35.6]} 52. h4 {[%clk 0:00:13.6]} 52... Nf5
{[%clk 0:00:34.6]} 53. h5 {[%clk 0:00:13.7]} 53... Ne7 {[%clk 0:00:26]} 54. h6
{[%clk 0:00:12.3]} 54... Kb6 {[%clk 0:00:18.4]} 55. Kf6 {[%clk 0:00:12.4]} 55...
Nd5+ {[%clk 0:00:17.7]} 56. Kg7 {[%clk 0:00:13.1]} 56... Kxa6 {[%clk 0:00:15.4]}
57. Kxh7 {[%clk 0:00:13.8]} 57... Nf4 {[%clk 0:00:13.9]} 58. Kg8 {[%clk
0:00:10.7]} 58... Ne6 {[%clk 0:00:07]} 59. h7 {[%clk 0:00:08.5]} 59... Nxg5
{[%clk 0:00:07.6]} 60. h8=Q {[%clk 0:00:09.2]} 60... Ne4 {[%clk 0:00:08.5]} 61.
Qd4 {[%clk 0:00:08.2]} 61... Ng3 {[%clk 0:00:04.4]} 62. Qd6+ {[%clk 0:00:07.9]}
62... Kb7 {[%clk 0:00:05.1]} 63. Qxg3 {[%clk 0:00:08.8]} 63... Kc6 {[%clk
0:00:06]} 64. Qe5 {[%clk 0:00:08.8]} 64... g5 {[%clk 0:00:05.6]} 65. Qc5+ {[%clk
0:00:08.6]} 65... Kd7 {[%clk 0:00:05.8]} 66. Qxb5+ {[%clk 0:00:09.2]} 66... Ke6
{[%clk 0:00:06.7]} 67. Qxg5 {[%clk 0:00:09.5]} 67... Kd6 {[%clk 0:00:07.6]} 68.
Qc5+ {[%clk 0:00:10]} 68... Kd7 {[%clk 0:00:07.7]} 69. b5 {[%clk 0:00:10.9]}
69... Kd8 {[%clk 0:00:07.1]} 70. b6 {[%clk 0:00:11.5]} 70... Kd7 {[%clk
0:00:08]} 71. b7 {[%clk 0:00:11.6]} 71... Kd8 {[%clk 0:00:08.9]} 72. b8=Q+
{[%clk 0:00:11.6]} 72... Kd7 {[%clk 0:00:07.5]} 73. Qbd6+ {[%clk 0:00:11.1]}
73... Ke8 {[%clk 0:00:07.2]} 74. Qce5# {[%clk 0:00:10.7]} 1-0